Workbook

Sheet Лист1
A1: Школа | C1: МБОУ "Каракашлинская ООШ" | F1: Утвердил: | G1: должность | H1: Директор школы
A2: Типовое примерное меню приготавливаемых блюд | G2: фамилия | H2: Шарафеева З.М.
A3: Возрастная категория | E3: 7-11 лет | G3: дата | H3: 1 | I3: 1 | J3: 2026
H4: день | I4: месяц | J4: год
A5: Неделя | B5: День недели | C5: Прием пищи | D5: Раздел меню | E5: Блюда | F5: Выход, г | G5: Цена | H5: Калорийность | I5: Белки | J5: Жиры | K5: Углеводы
A6: 1 | B6: 1 | C6: Завтрак | D6: гор.блюдо | E6: каша рисовая рассыпчатая с маслом | F6: 155 | H6: 259.9 | I6: 8.8 | J6: 5.64 | K6: 32.56
D7: гор.напиток | E7: чай с сахаром | F7: 200 | H7: 36 | I7: 0.2 | J7: 0 | K7: 9.1
D8: хлеб | E8: хлеб пшеничный | F8: 30 | H8: 70.2 | I8: 2.28 | J8: 0.24 | K8: 14.76
E9: хлеб ржано-пшеничный | F9: 20 | H9: 39.6 | I9: 1.36 | J9: 0.26 | K9: 7.96
E10: котлеты "Школьные" с соусом сметанным с томатом | F10: 100 | H10: 110.2 | I10: 4.8 | J10: 10.5 | K10: 9.01
E11: салат из белок.капусты | F11: 60 | H11: 57 | I11: 1.3 | J11: 2.7 | K11: 6.2
D13: итого | F13: =SUM(F6:F11) -> 565 | H13: =SUM(H6:H12) -> 572.9 | I13: =SUM(I6:I12) -> 18.74 | J13: =SUM(J6:J11) -> 19.34 | K13: =SUM(K6:K11) -> 79.59
A14: =A6 -> 1 | B14: =B6 -> 1 | C14: Обед | D14: закуска
D15: 1 блюдо
D16: 2 блюдо
D17: гарнир
D18: напиток
D19: хлеб бел.
D20: хлеб черн.
D23: итого
A24: =A6 -> 1 | B24: =B6 -> 1 | C24: Итого за день: | F24: =F13+F23 -> 565 | G24: =G13+G23 -> 0 | H24: 572.9 | I24: 18.74 | J24: 19.34 | L24: 77.76
A25: 1 | B25: 2 | C25: Завтрак | D25: гор.блюдо | E25: макаронные изд. С маслом | F25: 155 | H25: 194.2 | I25: 5.42 | J25: 3.67 | K25: 20.1
D26: гор.напиток | E26: компот из сухофруктов | F26: 200 | H26: 123 | I26: 0.5 | J26: 0.1 | K26: 30.9
D27: хлеб | E27: хлеб пшеничный | F27: 30 | H27: 70.2 | I27: 2.28 | J27: 0.24 | K27: 14.76
E28: хлеб ржано-пшеничный | F28: 20 | H28: 39.6 | I28: 1.36 | J28: 0.26 | K28: 7.96
E29: тефтели рыбные с соусом | F29: 100 | H29: 107 | I29: 6.2 | J29: 8.4 | K29: 3.4
E30: плюшка новомосковская | F30: 50 | H30: 47.5 | I30: 1.9 | J30: 3.9 | K30: 3.5
D31: итого | F31: 555 | G31: =SUM(G25:G30) -> 0 | H31: 582 | I31: 17.66 | J31: 16.57 | K31: 80.62 | L31: 0
A32: =A25 -> 1 | B32: =B25 -> 2 | C32: Обед | D32: закуска
D33: 1 блюдо
D34: 2 блюдо
D35: гарнир
D36: напиток
D37: хлеб бел.
D38: хлеб черн.
D41: итого
A42: =A25 -> 1 | B42: =B25 -> 2 | C42: Итого за день: | F42: 560 | G42: =G31+G41 -> 0 | H42: =H31+H41 -> 581.5 | I42: =I31+I41 -> 17.66 | J42: =J31+J41 -> 16.57 | K42: =SUM(K31) -> 80.62 | L42: 74.77
A43: 1 | B43: 3 | C43: Завтрак | D43: гор.блюдо | E43: плов из птицы | F43: 200 | H43: 267 | I43: 12.2 | J43: 13.2 | K43: 22.20
D44: гор.напиток | E44: какао с молоком | F44: 200 | H44: 94 | I44: 2.3 | J44: 2.9 | K44: 15.80
D45: хлеб | E45: хлеб пшеничный | F45: 30 | H45: 70.2 | I45: 2.28 | J45: 0.24 | K45: 14.76
E46: хлеб ржано-пшеничный | F46: 20 | H46: 39.6 | I46: 1.36 | J46: 0.26 | K46: 7.96
D47: фрукты | E47: плоды и ягоды свежие | F47: 100 | H47: 47 | I47: 0.4 | J47: 0.4 | K47: 9.80
D50: итого | F50: =SUM(F43:F49) -> 550 | G50: =SUM(G43:G49) -> 0 | H50: =SUM(H43:H49) -> 517.8 | I50: =SUM(I43:I49) -> 18.54 | J50: =SUM(J43:J49) -> 17 | K50: =SUM(K43:K49) -> 70.52 | L50: 0
A51: =A43 -> 1 | B51: =B43 -> 3 | C51: Обед | D51: фрукты
D52: 1 блюдо
D53: 2 блюдо
D54: гарнир
D55: напиток
D56: хлеб бел.
D57: хлеб черн.
D60: итого | F60: =SUM(F51:F59) -> 0 | G60: =SUM(G51:G59) -> 0 | H60: =SUM(H51:H59) -> 0 | I60: =SUM(I51:I59) -> 0 | J60: =SUM(J51:J59) -> 0
A61: =A43 -> 1 | B61: =B43 -> 3 | C61: Итого за день: | F61: =F50+F60 -> 550 | G61: =G50+G60 -> 0 | H61: =H50+H60 -> 517.8 | I61: =I50+I60 -> 18.54 | J61: =J50+J60 -> 17 | K61: 70.52 | L61: 74.77
A62: 1 | B62: 4 | C62: Завтрак | D62: гор.блюдо | E62: пюре гороховое с маслом | F62: 155 | H62: 217.5 | I62: 6.67 | J62: 4.08 | K62: 39.17
D63: гор.напиток | E63: чай с сахаром | F63: 200 | H63: 36 | I63: 0.2 | J63: 0 | K63: 9.1
D64: хлеб | E64: хлеб пшеничный | F64: 30 | H64: 70.2 | I64: 2.28 | J64: 0.24 | K64: 14.76
E65: хлеб ржано-пшеничный | F65: 20 | H65: 39.6 | I65: 1.36 | J65: 0.26 | K65: 7.96
E66: фрикадельки куриные тушеные в соусе | F66: 90 | H66: 77.7 | I66: 4.5 | J66: 9.98 | K66: 5.7
E67: салат из свеклы с раст.маслом | F67: 60 | H67: 69 | I67: 1 | J67: 4.8 | K67: 5
D69: итого | F69: =SUM(F62:F68) -> 555 | G69: =SUM(G62:G68) -> 0 | H69: =SUM(H62:H68) -> 510 | I69: =SUM(I62:I68) -> 16.01 | J69: =SUM(J62:J68) -> 19.36 | K69: =SUM(K62:K67) -> 81.69 | L69: 0
A70: =A62 -> 1 | B70: =B62 -> 4 | C70: Обед | D70: закуска
D71: 1 блюдо
D72: 2 блюдо
D73: гарнир
D74: напиток
D75: хлеб бел.
D76: хлеб черн.
D79: итого | F79: =SUM(F70:F78) -> 0 | G79: =SUM(G70:G78) -> 0 | H79: =SUM(H70:H78) -> 0 | I79: =SUM(I70:I78) -> 0 | J79: =SUM(J70:J78) -> 0
A80: =A62 -> 1 | B80: =B62 -> 4 | C80: Итого за день: | F80: =F69+F79 -> 555 | G80: =G69+G79 -> 0 | H80: =H69+H79 -> 510 | I80: =I69+I79 -> 16.01 | J80: =J69+J79 -> 19.36 | K80: 81.92 | L80: 74.77
A81: 1 | B81: 5 | C81: Завтрак | D81: гор.блюдо | E81: гречка с курицей по купечески | F81: 200 | H81: 294.2 | I81: 13.42 | J81: 13.67 | K81: 33.3
D82: гор.напиток | E82: чай с сахаром | F82: 200 | H82: 36 | I82: 0.2 | J82: 0 | K82: 9.1
D83: хлеб | E83: хлеб пшеничный | F83: 30 | H83: 70.2 | I83: 2.28 | J83: 0.24 | K83: 14.76
E84: хлеб ржано -пшеничный | F84: 20 | H84: 39.6 | I84: 1.36 | J84: 0.26 | K84: 7.96
E85: салат из моркови | F85: 60 | H85: 72 | I85: 0.6 | J85: 2.3 | K85: 5
D88: итого | F88: =SUM(F81:F87) -> 510 | G88: =SUM(G81:G87) -> 0 | H88: =SUM(H81:H87) -> 512 | I88: =SUM(I81:I87) -> 17.86 | J88: =SUM(J81:J87) -> 16.47 | K88: =SUM(K81:K87) -> 70.12 | L88: 0
A89: =A81 -> 1 | B89: =B81 -> 5 | C89: Обед | D89: закуска
D90: 1 блюдо
D91: 2 блюдо
D92: гарнир
D93: напиток
D94: хлеб бел.
D95: хлеб черн.
D98: итого | F98: =SUM(F89:F97) -> 0 | G98: =SUM(G89:G97) -> 0 | H98: =SUM(H89:H97) -> 0 | I98: =SUM(I89:I97) -> 0 | J98: =SUM(J89:J97) -> 0
A99: =A81 -> 1 | B99: =B81 -> 5 | C99: Итого за день: | F99: =F88+F98 -> 510 | G99: =G88+G98 -> 0 | H99: =H88+H98 -> 512 | I99: =I88+I98 -> 17.86 | J99: =J88+J98 -> 16.47 | K99: 70.12 | L99: 74.77
A100: 1 | B100: 6 | C100: Завтрак | D100: гор.блюдо | E100: картофельное пюре | F100: 150 | H100: 190.25 | I100: 3.08 | J100: 3.7 | K100: 32.03
D101: гор.напиток | E101: кисель | F101: 200 | H101: 30 | I101: 0 | J101: 0 | K101: 7.5
D102: хлеб | E102: хлеб ржано-пшеничный | F102: 20 | H102: 39.6 | I102: 1.36 | J102: 0.26 | K102: 7.96
E103: хлеб пшеничный | F103: 30 | H103: 70.2 | I103: 2.28 | J103: 0.24 | K103: 14.76
E104: птица тушенная в соусе | F104: 100 | H104: 162 | I104: 8.5 | J104: 12.84 | K104: 19.9
E105: печенье | F105: 30 | H105: 94.5 | I105: 2.25 | J105: 2.04 | K105: 0.32
D106: итого | F106: =SUM(F100:F105) -> 530 | G106: =SUM(G100:G105) -> 0 | H106: =SUM(H100:H105) -> 586.55 | I106: 17.47 | J106: =SUM(J100:J105) -> 19.08 | K106: 82.47
A107: =A100 -> 1 | B107: 6 | C107: Обед | D107: закуска
D108: 1 блюдо
D109: 2 блюдо
D110: гарнир
D111: напиток
D112: хлеб бел.
D113: хлеб черн.
D116: итого | F116: =SUM(F107:F115) -> 0 | G116: =SUM(G107:G115) -> 0 | H116: 0 | I116: 0 | J116: 0
A117: =A100 -> 1 | B117: =B100 -> 6 | C117: Итого за день: | F117: =F106+F116 -> 530 | G117: =G106+G116 -> 0 | H117: 586.55 | I117: 17.47 | J117: 19.08 | K117: =SUM(K106) -> 82.47 | L117: 74.77
A118: 2 | B118: 1 | C118: Завтрак | D118: гор.блюдо | E118: макаронные изделия отварные с маслом | F118: 155 | H118: 194.2 | I118: 5.42 | J118: 3.67 | K118: 20.1
D119: гор.напиток | E119: чай с сахаром | F119: 200 | H119: 36 | I119: 0.2 | J119: 0 | K119: 9.1
D120: хлеб | E120: хлеб пшеничный | F120: 30 | H120: 70.2 | I120: 2.28 | J120: 0.24 | K120: 14.76
E121: хлеб ржано-пшеничный | F121: 20 | H121: 39.6 | I121: 1.36 | J121: 0.26 | K121: 7.96
E122: плоды и ягоды свежие | F122: 100 | H122: 47 | I122: 0.4 | J122: 0.4 | K122: 9.8
E123: тефтели гов.с соусом | F123: 90 | H123: 177.1 | I123: 8.6 | J123: 14.3 | K123: 10.3
D125: итого | F125: =SUM(F118:F124) -> 595 | G125: =SUM(G118:G124) -> 0 | H125: 564.1 | I125: 18.26 | J125: 18.87 | K125: =SUM(K118:K123) -> 72.02 | L125: =SUM(L118:L124) -> 0
A126: =A118 -> 2 | B126: =B118 -> 1 | C126: Обед | D126: фрукты
D127: 1 блюдо
D128: 2 блюдо
D129: гарнир
D130: напиток
D131: хлеб бел.
D132: хлеб черн.
D135: итого | F135: =SUM(F126:F134) -> 0 | G135: =SUM(G126:G134) -> 0 | H135: 0 | I135: 0 | J135: 0
A136: =A118 -> 2 | B136: =B118 -> 1 | C136: Итого за день: | F136: =F125+F135 -> 595 | G136: =G125+G135 -> 0 | H136: =H125+H135 -> 564.1 | I136: =I125+I135 -> 18.26 | J136: =J125+J135 -> 18.87 | K136: 72.02 | L136: 74.77
A137: 2 | B137: 2 | C137: Завтрак | D137: гор.блюдо | E137: каша гречневая рассыпчатая | F137: 155 | H137: 260 | I137: 8.83 | J137: 5.67 | K137: 32.58
D138: гор.напиток | E138: чай с сахаром | F138: 200 | H138: 36 | I138: 0.2 | J138: 0 | K138: 9.1
D139: хлеб | E139: хлеб пшеничный | F139: 30 | H139: 70.2 | I139: 2.28 | J139: 0.24 | K139: 14.76
E140: хлеб ржано-пшеничный | F140: 20 | H140: 39.6 | I140: 1.36 | J140: 0.26 | K140: 7.96
E141: котлеты школьные с соусом см.том | F141: 100 | H141: 110.2 | I141: 4.8 | J141: 10.5 | K141: 9.01
D144: итого | F144: =SUM(F137:F143) -> 505 | G144: =SUM(G137:G143) -> 0 | H144: =SUM(H137:H141) -> 516 | I144: 17.47 | J144: 16.67 | K144: =SUM(K137:K141) -> 73.41 | L144: =SUM(L137:L143) -> 0
A145: =A137 -> 2 | B145: =B137 -> 2 | C145: Обед | D145: закуска
D146: 1 блюдо
D147: 2 блюдо
D148: гарнир
D149: напиток
D150: хлеб бел.
D151: хлеб черн.
D154: итого | F154: =SUM(F145:F153) -> 0 | G154: =SUM(G145:G153) -> 0 | H154: 0 | I154: 0 | J154: 0
A155: =A137 -> 2 | B155: =B137 -> 2 | C155: Итого за день: | F155: =F144+F154 -> 505 | G155: =G144+G154 -> 0 | H155: =H144+H154 -> 516 | I155: =I144+I154 -> 17.47 | J155: =J144+J154 -> 16.67 | K155: 73.41 | L155: 74.77
A156: 2 | B156: 3 | C156: Завтрак | D156: гор.блюдо | E156: картофельное пюре | F156: 150 | H156: 190.25 | I156: 3.08 | J156: 3.7 | K156: 32.03
D157: гор.напиток | E157: чай с лимоном сладкий | F157: 200 | H157: 38 | I157: 0.2 | J157: 0 | K157: 9.3
D158: хлеб | E158: хлеб пшеничный | F158: 30 | H158: 70.2 | I158: 2.28 | J158: 0.24 | K158: 14.76
E159: хлеб ржано-пшеничный | F159: 20 | H159: 39.6 | I159: 1.36 | J159: 0.26 | K159: 7.96
E160: биточки рыбные с соусом | F160: 100 | H160: 134.6 | I160: 8.8 | J160: 12.55 | K160: 8.47
E161: салат из моркови | F161: 60 | H161: 72 | I161: 0.6 | J161: 2.3 | K161: 5
D163: итого | F163: =SUM(F156:F162) -> 560 | G163: =SUM(G156:G162) -> 0 | H163: =SUM(H156:H161) -> 544.65 | I163: 16.32 | J163: 19.05 | K163: =SUM(K156:K161) -> 77.52 | L163: =SUM(L156:L162) -> 0
A164: =A156 -> 2 | B164: =B156 -> 3 | C164: Обед | D164: закуска
D165: 1 блюдо
D166: 2 блюдо
D167: гарнир
D168: напиток
D169: хлеб бел.
D170: хлеб черн.
D173: итого | F173: =SUM(F164:F172) -> 0 | G173: =SUM(G164:G172) -> 0 | H173: 0 | I173: 0 | J173: 0
A174: =A156 -> 2 | B174: =B156 -> 3 | C174: Итого за день: | F174: =F163+F173 -> 560 | G174: =G163+G173 -> 0 | H174: =H163+H173 -> 544.65 | I174: =I163+I173 -> 16.32 | J174: =J163+J173 -> 19.05 | K174: 77.52 | L174: 74.77
A175: 2 | B175: 4 | C175: Завтрак | D175: гор.блюдо | E175: плов из птицы | F175: 200 | H175: 267 | I175: 12.2 | J175: 13.2 | K175: 22.2
D176: гор.напиток | E176: компот из сухоруктов | F176: 200 | H176: 123 | I176: 0.5 | J176: 0.1 | K176: 30.9
D177: хлеб | E177: хлеб пшеничный | F177: 30 | H177: 70.2 | I177: 2.28 | J177: 0.24 | K177: 14.76
E178: хлеб ржано-пшеничный | F178: 20 | H178: 39.6 | I178: 1.36 | J178: 0.26 | K178: 7.96
E179: салат из свеклы отварной с раст.маслом | F179: 60 | H179: 69 | I179: 1 | J179: 4.8 | K179: 5
E180: пряники | F180: 30 | H180: 4.3 | I180: 1.77 | J180: 0.41 | K180: 2.5
D182: итого | F182: =SUM(F175:F181) -> 540 | G182: =SUM(G175:G181) -> 0 | H182: 573.1 | I182: 19.11 | J182: 19.01 | K182: 83.32 | L182: =SUM(L175:L181) -> 0
A183: =A175 -> 2 | B183: =B175 -> 4 | C183: Обед | D183: закуска
D184: 1 блюдо
D185: 2 блюдо
D186: гарнир
D187: напиток
D188: хлеб бел.
D189: хлеб черн.
D192: итого | F192: =SUM(F183:F191) -> 0 | G192: =SUM(G183:G191) -> 0 | H192: 0 | I192: 0 | J192: 0
A193: =A175 -> 2 | B193: =B175 -> 4 | C193: Итого за день: | F193: =F182+F192 -> 540 | G193: =G182+G192 -> 0 | H193: =H182+H192 -> 573.1 | I193: =I182+I192 -> 19.11 | J193: =J182+J192 -> 19.01 | K193: 83.32 | L193: 74.77
A194: 2 | B194: 5 | C194: Завтрак | D194: гор.блюдо | E194: каша гречневая рассыпчатая с масл. | F194: 155 | H194: 260 | I194: 8.83 | J194: 5.67 | K194: 32.58
D195: гор.напиток | E195: сок фруктовый | F195: 200 | H195: 43 | I195: 0.5 | J195: 0.1 | K195: 10.1
D196: хлеб | E196: хлеб пшеничный | F196: 30 | H196: 70.2 | I196: 2.28 | J196: 0.24 | K196: 14.76
E197: хлеб ржано-пшеничный | F197: 20 | H197: 39.6 | I197: 1.36 | J197: 0.26 | K197: 7.96
E198: сыр порциями | F198: 20 | H198: 71.6 | I198: 1.64 | J198: 2.9 | K198: 0
E199: фрикадельки куриные туш. в соусе | F199: 90 | H199: 77.7 | I199: 4.5 | J199: 9.98 | K199: 5.7
D201: итого | F201: =SUM(F194:F200) -> 515 | G201: =SUM(G194:G200) -> 0 | H201: =SUM(H194:H200) -> 562.1 | I201: 19.11 | J201: 19.15 | K201: =SUM(K194:K200) -> 71.1 | L201: =SUM(L194:L200) -> 0
A202: =A194 -> 2 | B202: =B194 -> 5 | C202: Обед | D202: закуска
D203: 1 блюдо
D204: 2 блюдо
D205: гарнир
D206: напиток
D207: хлеб бел.
D208: хлеб черн.
D211: итого | F211: =SUM(F202:F210) -> 0 | G211: =SUM(G202:G210) -> 0 | H211: 0 | I211: 0 | J211: 0
A212: =A194 -> 2 | B212: =B194 -> 5 | C212: Итого за день: | F212: =F201+F211 -> 515 | G212: =G201+G211 -> 0 | H212: =H201+H211 -> 562.1 | I212: =I201+I211 -> 19.11 | J212: =J201+J211 -> 19.15 | K212: 71.1 | L212: 74.77
A213: 2 | B213: 6 | C213: Завтрак | D213: гор.блюдо | E213: макаронные изд.с маслом | F213: 155 | H213: 194.2 | I213: 5.42 | J213: 3.67 | K213: 20.1
D214: гор.напиток | E214: чай с сахаром | F214: 200 | H214: 36 | I214: 0.2 | J214: 0 | K214: 9.1
D215: хлеб | E215: хлеб пшеничный | F215: 30 | H215: 70.2 | I215: 2.28 | J215: 0.24 | K215: 14.76
E216: хлеб ржано-пшеничный | F216: 20 | H216: 39.6 | I216: 1.36 | J216: 0.26 | K216: 7.96
E217: птица тушенная в соусе | F217: 100 | H217: 162 | I217: 8.5 | J217: 12.84 | K217: 19.9
D221: итого | F221: =SUM(F213:F220) -> 505 | G221: =SUM(G213:G220) -> 0 | H221: 502 | I221: 17.76 | J221: =SUM(J213:J218) -> 17.01 | K221: =SUM(K213:K218) -> 71.82 | L221: =SUM(L213:L220) -> 0
A222: =A213 -> 2 | B222: =B213 -> 6 | C222: Обед | D222: закуска
D223: 1 блюдо
D224: гарнир
D225: напиток
D226: хлеб бел.
D227: хлеб черн.
D230: итого
C231: Среднее значение за период: | L231: =(L24+L42+L61+L80+L99+L136+L155+L174+L193+L212)/(IF(L24=0,0,1)+IF(L42=0,0,1)+IF(L61=0,0,1)+IF(L80=0,0,1)+IF(L99=0,0,1)+IF(L136=0,0,1)+IF(L155=0,0,1)+IF(L174=0,0,1)+IF(L193=0,0,1)+IF(L212=0,0,1)) -> 75.069

Sheet Лист2
